fUSD/lending_fUSD_20250502
["ID","MTS","AMOUNT","RATE_DAILY","PERIOD"]
[359593093,1746171049053,-467.75,0.00019999,2]
[359593094,1746171049063,-15140.59522637,0.0002,2]
[359593095,1746171049876,-1265.10978806,0.00019747,2]
[359593096,1746171049886,-450.0,0.00019827,2]
[359593097,1746171049897,-15242.23867326,0.0002,2]
[359593098,1746171049909,-1318.3450002,0.0002,2]
[359593099,1746171050019,-411.46341986,0.0002,2]
[359593100,1746171050031,-1890.44,0.0002,2]
[359593101,1746171050921,-901.9,0.0002,2]
[359593102,1746171051471,-254230.76402559,0.0002,2]
[359593103,1746171051483,-1127.49545919,0.0002,2]
[359593104,1746171051498,-87407.26087396,0.0002,2]
[359593105,1746171051522,-35239.999987,0.0002,2]
[359593106,1746171051533,-3712.08920011,0.0002,2]
[359593107,1746171115266,500.0,0.0003287,60]
[359593108,1746171132875,500.0,0.0003287,120]
[359593109,1746171184737,500.0,0.0003287,60]
[359593110,1746171185399,541.61,0.00017026,2]
[359593111,1746171185464,541.61,0.0001929,2]
[359593112,1746171199328,299.99,0.00019828,7]
[359593115,1746171528507,-300.0,0.00019727,2]
[359593116,1746171528534,-200.0,0.00019727,2]
[359593117,1746171541917,300.0,0.00019727,2]
[359593118,1746171545332,200.31915505,0.00019727,2]
[359593119,1746171559929,1719.68084495,0.000197,2]
[359593121,1746171723657,250.0,0.00018828,7]
[359593122,1746171769996,151.0,0.0002,7]
[359593123,1746171770464,151.0,0.0002,7]
[359593124,1746171770916,151.0,0.0002,7]
[359593125,1746171771368,151.0,0.0002,7]
[359593126,1746171771856,151.0,0.0002,7]
[359593127,1746171772292,151.0,0.0002,7]
[359593128,1746171772730,151.0,0.0002,7]
[359593129,1746171773144,151.0,0.0002,7]
[359593130,1746171773571,151.0,0.0002,7]
[359593131,1746171796469,299.99,0.00019754,7]
[359593132,1746171809825,1000.0,0.000189,2]
[359593134,1746171841368,2095.80137938,0.00019826,5]
[359593135,1746171841399,2095.80137938,0.00019998,5]
[359593136,1746171841435,2095.80137938,0.00019827,5]
[359593138,1746171841471,2095.80137938,0.00019998,5]
[359593141,1746171841508,2095.80137938,0.00019853,5]
[359593142,1746171841541,2095.80137938,0.00019998,5]
[359593143,1746171841581,2095.80137938,0.00019998,5]
[359593144,1746171841623,2095.80137938,0.00019998,5]
[359593145,1746171841655,2095.80137938,0.00019998,5]
[359593146,1746171841690,2095.80137938,0.00019826,5]
[359593147,1746171841727,2095.80137938,0.00019985,5]
[359593148,1746171841762,2095.80137937,0.00019998,5]
[359593149,1746172136152,400.0,0.00032876,60]
[359593150,1746172221192,150.0,0.00018833,2]
[359593151,1746172225617,587503.0,0.00032877,60]
[359593154,1746172231893,-166.57,0.00019419,2]
[359593155,1746172231902,-106.23967872,0.00019699,2]
[359593156,1746172231965,-636.10140926,0.00019699,2]
[359593157,1746172231977,-457.65891202,0.00019699,2]
[359593158,1746172231987,-250.0,0.000197,2]
[359593159,1746172231996,-2871.9980005,0.000197,2]
[359593160,1746172232008,-5408.32115455,0.000197,2]
[359593161,1746172232019,-300.0,0.00019712,2]
[359593162,1746172232030,-200.0,0.00019714,2]
[359593163,1746172232040,-850.0,0.00019726,2]
[359593164,1746172232050,-2500.0,0.00019726,2]
[359593165,1746172232059,-13646.84539351,0.00019727,2]
[359593166,1746172232070,-286.58869225,0.00019727,2]
[359593167,1746172232080,-2279.5855,0.00019727,2]
[359593168,1746172232090,-158.72823625,0.00019728,2]
[359593169,1746172232100,-200.0,0.00019731,2]
[359593170,1746172232112,-500.0,0.00019743,2]
[359593171,1746172232122,-500.0,0.00019743,2]
[359593172,1746172232133,-500.0,0.00019743,2]
[359593173,1746172232143,-500.0,0.00019743,2]
[359593174,1746172232154,-500.0,0.00019743,2]
[359593175,1746172232164,-575.39009764,0.00019743,2]
[359593176,1746172232173,-500.0,0.00019743,2]
[359593177,1746172232182,-500.0,0.00019743,2]
[359593178,1746172232191,-36364.25996347,0.00019744,2]
[359593179,1746172232200,-13646.84539345,0.00019746,2]
[359593180,1746172232210,-2278.8221,0.00019754,2]
[359593181,1746172232220,-523.1366,0.00019754,2]
[359593182,1746172232230,-150.99,0.00019754,2]
[359593183,1746172232239,-402.5,0.00019754,2]
[359593184,1746172232249,-13646.84539345,0.00019765,2]
[359593185,1746172232258,-13646.84539345,0.00019785,2]
[359593186,1746172232267,-155.5769965,0.00019799,2]
[359593188,1746172232277,-13646.84539345,0.00019804,2]
[359593191,1746172232287,-13646.84539345,0.00019823,2]
[359593194,1746172232296,-450.0,0.00019825,2]
[359593195,1746172232306,-748.49,0.00019825,2]
[359593196,1746172232316,-450.0,0.00019825,2]
[359593197,1746172232325,-656.1,0.00019825,2]
[359593198,1746172232335,-982.16,0.00019825,2]
[359593199,1746172232344,-450.0,0.00019825,2]
[359593200,1746172232353,-1160.52,0.00019825,2]
[359593201,1746172232362,-831.13,0.00019825,2]
[359593202,1746172232371,-450.0,0.00019825,2]
[359593203,1746172232380,-629.37,0.00019825,2]
[359593204,1746172232390,-777.38,0.00019825,2]
[359593205,1746172232399,-1497.32,0.00019825,2]
[359593206,1746172232408,-747.12,0.00019825,2]
[359593207,1746172232418,-1177.91,0.00019825,2]
[359593208,1746172232427,-450.0,0.00019825,2]
[359593209,1746172232437,-450.0,0.00019825,2]
[359593210,1746172232446,-450.0,0.00019825,2]
[359593211,1746172232455,-591.35,0.00019825,2]
[359593212,1746172232465,-1276.56,0.00019825,2]
[359593213,1746172232475,-2522.6,0.00019825,2]
[359593214,1746172232485,-13118.75,0.00019825,2]
[359593215,1746172232742,-450.0,0.00019825,2]
[359593216,1746172232756,-450.0,0.00019825,2]
[359593217,1746172232766,-450.0,0.00019825,2]
[359593218,1746172232775,-450.0,0.00019825,2]
[359593219,1746172232785,-944.236594,0.00019825,2]
[359593220,1746172232794,-610.18,0.00019825,2]
[359593221,1746172232803,-450.0,0.00019826,2]
[359593222,1746172232813,-450.0,0.00019826,2]
[359593223,1746172232823,-784.14,0.00019826,2]
[359593224,1746172232833,-972.91,0.00019826,2]
[359593225,1746172232842,-450.0,0.00019826,2]
[359593226,1746172232852,-450.0,0.00019826,2]
[359593227,1746172232861,-450.0,0.00019826,2]
[359593228,1746172232870,-868.29,0.00019826,2]
[359593229,1746172232879,-450.0,0.00019826,2]
[359593230,1746172232888,-450.0,0.00019826,2]
[359593231,1746172232897,-450.0,0.00019826,2]
[359593232,1746172232910,-358.86835686,0.00019826,2]
[359593233,1746172233398,-91.13164314,0.00019826,2]
[359593234,1746172233408,-450.0,0.00019826,2]
[359593235,1746172233417,-761.53590123,0.00019826,2]
[359593236,1746172233429,-293.963431,0.00019826,2]
[359593237,1746172233454,-664.22148589,0.00019826,2]
[359593238,1746172233466,-24.18918188,0.00019826,2]
[359593239,1746172233476,-658.04,0.00019826,2]
[359593240,1746172233486,-493.68,0.00019826,2]
[359593241,1746172233496,-704.19,0.00019826,2]
[359593242,1746172233506,-736.23,0.00019826,2]
[359593243,1746172233515,-450.0,0.00019826,2]
[359593244,1746172233525,-450.0,0.00019826,2]
[359593245,1746172233535,-761.07,0.00019826,2]
[359593246,1746172233545,-139.91755669,0.00019826,2]
[359593247,1746172233557,-310.08244331,0.00019826,2]
[359593248,1746172233567,-517.94715813,0.00019826,2]
[359593249,1746172233578,-470.0,0.00019826,2]
[359593250,1746172233592,-712.68,0.00019826,2]
[359593251,1746172233602,-450.0,0.00019826,2]
[359593252,1746172233612,-1300.569413,0.00019826,2]
[359593253,1746172233623,-407.28942331,0.00019826,2]
[359593254,1746172233634,-288.70057669,0.00019826,2]
[359593255,1746172233644,-515.93943531,0.00019826,2]
[359593256,1746172233655,-450.0,0.00019826,2]
[359593257,1746172233666,-450.0,0.00019826,2]
[359593258,1746172233676,-784.93,0.00019826,2]
[359593259,1746172233686,-863.92,0.00019826,2]
[359593260,1746172233696,-450.0,0.00019826,2]
[359593261,1746172233706,-779.6,0.00019826,2]
[359593262,1746172233716,-839.24,0.00019826,2]
[359593263,1746172233726,-555.18,0.00019826,2]
[359593264,1746172233736,-657.07,0.00019826,2]
[359593265,1746172233746,-595.88,0.00019826,2]
[359593266,1746172233757,-450.0,0.00019826,2]
[359593267,1746172233768,-494.47,0.00019826,2]
[359593268,1746172233778,-555.5,0.00019826,2]
[359593269,1746172233788,-2501.677988,0.00019826,2]
[359593270,1746172233800,-133.392012,0.00019826,2]
[359593271,1746172233810,-855.49,0.00019826,2]
[359593272,1746172233819,-97.0829418,0.00019826,2]
[359593274,1746172237959,-681.67,0.00019825,2]
[359593275,1746172237969,-352.9170582,0.00019826,2]
[359593276,1746172237979,-450.0,0.00019826,2]
[359593277,1746172237988,-450.0,0.00019826,2]
[359593278,1746172237998,-450.0,0.00019826,2]
[359593279,1746172238007,-66.30532029,0.00019826,2]
[359593280,1746172238018,-753.7524354,0.00019826,2]
[359593281,1746172238029,-478.61224431,0.00019826,2]
[359593282,1746172238039,-55.08358665,0.00019826,2]
[359593283,1746172238050,-388.43624686,0.00019826,2]
[359593284,1746172238060,-242.92571482,0.00019826,2]
[359593285,1746172238073,-319.47179089,0.00019826,2]
[359593286,1746172238097,-186.32249429,0.00019826,2]
[359593287,1746172238107,-450.0,0.00019826,2]
[359593288,1746172238117,-1908.84,0.00019826,2]
[359593289,1746172238127,-1095.53,0.00019826,2]
[359593290,1746172238137,-450.0,0.00019826,2]
[359593291,1746172238148,-450.0,0.00019826,2]
[359593292,1746172238159,-724.38,0.00019826,2]
[359593293,1746172238168,-450.0,0.00019826,2]
[359593294,1746172238180,-472.86,0.00019826,2]
[359593304,1746172238435,-450.0,0.00019826,2]
[359593306,1746172238445,-483.13,0.00019826,2]
[359593308,1746172238455,-450.0,0.00019826,2]
[359593310,1746172238464,-450.0,0.00019826,2]
[359593312,1746172238474,-381.03171492,0.00019826,2]
[359593314,1746172238483,-476.14,0.00019826,2]
[359593316,1746172238493,-450.0,0.00019826,2]
[359593319,1746172238502,-450.0,0.00019826,2]
[359593320,1746172238511,-450.0,0.00019826,2]
[359593321,1746172238520,-450.0,0.00019826,2]
[359593322,1746172238529,-450.0,0.00019826,2]
[359593323,1746172238538,-1049.95,0.00019826,2]
[359593324,1746172238548,-450.0,0.00019826,2]
[359593325,1746172238557,-994.17,0.00019826,2]
[359593326,1746172238566,-1128.48,0.00019826,2]
[359593327,1746172238575,-450.0,0.00019826,2]
[359593328,1746172238587,-450.0,0.00019826,2]
[359593329,1746172238596,-450.0,0.00019826,2]
[359593330,1746172238605,-450.0,0.00019826,2]
[359593331,1746172238614,-758.27,0.00019826,2]
[359593332,1746172238623,-848.81,0.00019826,2]
[359593333,1746172238633,-708.48,0.00019826,2]
[359593334,1746172238642,-450.0,0.00019826,2]
[359593335,1746172238651,-450.0,0.00019826,2]
[359593336,1746172238661,-450.0,0.00019826,2]
[359593337,1746172238670,-450.0,0.00019826,2]
[359593338,1746172238680,-450.0,0.00019826,2]
[359593339,1746172238690,-450.0,0.00019826,2]
[359593340,1746172238700,-1131.83,0.00019826,2]
[359593341,1746172238709,-1065.47,0.00019826,2]
[359593342,1746172238718,-454.64,0.00019826,2]
[359593343,1746172238728,-612.71,0.00019826,2]
[359593344,1746172238737,-450.0,0.00019826,2]
[359593345,1746172238746,-528.29,0.00019826,2]
[359593346,1746172238756,-450.0,0.00019826,2]
[359593347,1746172238765,-735.03,0.00019826,2]
[359593348,1746172238775,-450.0,0.00019826,2]
[359593349,1746172238785,-450.0,0.00019826,2]
[359593350,1746172238794,-450.0,0.00019826,2]
[359593351,1746172238803,-450.0,0.00019826,2]
[359593352,1746172238813,-450.0,0.00019826,2]
[359593353,1746172238822,-450.0,0.00019826,2]
[359593354,1746172238832,-450.0,0.00019826,2]
[359593355,1746172238841,-2871.46,0.00019826,2]
[359593356,1746172238850,-450.0,0.00019826,2]
[359593357,1746172238860,-450.0,0.00019826,2]
[359593358,1746172238870,-450.0,0.00019826,2]
[359593359,1746172238879,-250.0,0.00019826,2]
[359593360,1746172238889,-450.0,0.00019826,2]
[359593361,1746172238898,-450.0,0.00019826,2]
[359593362,1746172238908,-4694.01,0.00019826,2]
[359593363,1746172238917,-450.0,0.00019826,2]
[359593364,1746172238927,-565.61,0.00019826,2]
[359593365,1746172238936,-623.72,0.00019826,2]
[359593366,1746172238945,-2536.41,0.00019826,2]
[359593367,1746172238954,-931.9,0.00019826,2]
[359593368,1746172238964,-617.85,0.00019826,2]
[359593369,1746172238975,-804.23,0.00019826,2]
[359593370,1746172238984,-450.0,0.00019826,2]
[359593371,1746172238994,-969.93,0.00019826,2]
[359593372,1746172239003,-450.0,0.00019826,2]
[359593373,1746172239013,-450.0,0.00019826,2]
[359593374,1746172239022,-450.0,0.00019826,2]
[359593375,1746172239031,-450.0,0.00019826,2]
[359593376,1746172239042,-450.0,0.00019826,2]
[359593377,1746172239051,-450.0,0.00019826,2]
[359593378,1746172239061,-667.52,0.00019826,2]
[359593379,1746172239070,-450.0,0.00019826,2]
[359593380,1746172239079,-826.07,0.00019826,2]
[359593381,1746172239089,-450.0,0.00019826,2]
[359593382,1746172239098,-798.23,0.00019826,2]
[359593383,1746172239108,-450.0,0.00019826,2]
[359593384,1746172239117,-450.0,0.00019826,2]
[359593385,1746172239127,-450.0,0.00019826,2]
[359593386,1746172239136,-451.83,0.00019826,2]
[359593387,1746172239145,-450.0,0.00019826,2]
[359593388,1746172239155,-450.0,0.00019826,2]
[359593389,1746172239164,-1508.55,0.00019826,2]
[359593390,1746172239174,-527.18,0.00019826,2]
[359593391,1746172239185,-450.0,0.00019826,2]
[359593392,1746172239196,-475.95,0.00019826,2]
[359593393,1746172239205,-552.07078652,0.00019826,2]
[359593394,1746172239215,-1166.9,0.00019826,2]
[359593395,1746172239224,-457.87,0.00019826,2]
[359593396,1746172239234,-746.09,0.00019826,2]
[359593397,1746172239245,-450.0,0.00019826,2]
[359593398,1746172239255,-3253.65,0.00019826,2]
[359593399,1746172239264,-689.77,0.00019826,2]
[359593400,1746172239273,-450.0,0.00019826,2]
[359593401,1746172239282,-2773.61,0.00019826,2]
[359593402,1746172239292,-450.0,0.00019826,2]
[359593403,1746172239301,-1021.59,0.00019826,2]
[359593404,1746172239311,-1006.39,0.00019826,2]
[359593405,1746172239320,-450.0,0.00019826,2]
[359593406,1746172239329,-794.51,0.00019826,2]
[359593407,1746172239338,-450.0,0.00019826,2]
[359593408,1746172239348,-450.0,0.00019826,2]
[359593409,1746172239358,-450.0,0.00019826,2]
[359593410,1746172239367,-346.34753997,0.00019826,2]
[359593411,1746172239376,-450.0,0.00019826,2]
[359593412,1746172239386,-450.0,0.00019826,2]
[359593413,1746172239395,-450.0,0.00019826,2]
[359593414,1746172239406,-585.80841285,0.00019826,2]
[359593415,1746172239415,-450.0,0.00019826,2]
[359593416,1746172239425,-825.68,0.00019826,2]
[359593417,1746172239433,-257.68004807,0.00019826,2]
[359593418,1746172239443,-450.0,0.00019826,2]
[359593419,1746172239453,-520.44,0.00019826,2]
[359593420,1746172239462,-250.97643597,0.00019826,2]
[359593421,1746172239472,-450.0,0.00019826,2]
[359593422,1746172239481,-647.45,0.00019826,2]
[359593423,1746172239491,-450.0,0.00019826,2]
[359593424,1746172239500,-538.59,0.00019826,2]
[359593425,1746172239510,-450.0,0.00019826,2]
[359593426,1746172239519,-450.0,0.00019826,2]
[359593427,1746172239529,-450.0,0.00019826,2]
[359593428,1746172239538,-450.0,0.00019826,2]
[359593429,1746172239547,-727.84,0.00019826,2]
[359593430,1746172239558,-450.0,0.00019826,2]
[359593431,1746172239567,-450.0,0.00019826,2]
[359593432,1746172239577,-265.1254248,0.00019826,2]
[359593433,1746172239589,-455.94,0.00019826,2]
[359593434,1746172239599,-1528.71,0.00019826,2]
[359593435,1746172239609,-893.15,0.00019826,2]
[359593436,1746172239619,-1528.71,0.00019826,2]
[359593437,1746172239631,-450.0,0.00019826,2]
[359593438,1746172239641,-1528.71,0.00019826,2]
[359593439,1746172239651,-450.0,0.00019826,2]
[359593440,1746172239661,-666.58,0.00019826,2]
[359593441,1746172239671,-450.0,0.00019826,2]
[359593442,1746172239680,-1393.77,0.00019826,2]
[359593443,1746172239690,-450.0,0.00019826,2]
[359593444,1746172239699,-1162.03,0.00019826,2]
[359593445,1746172239709,-450.0,0.00019826,2]
[359593446,1746172239719,-450.0,0.00019826,2]
[359593447,1746172239729,-450.0,0.00019826,2]
[359593448,1746172239738,-450.0,0.00019826,2]
[359593449,1746172239748,-450.0,0.00019826,2]
[359593450,1746172239758,-450.0,0.00019826,2]
[359593451,1746172239767,-668.49,0.00019826,2]
[359593452,1746172239776,-450.0,0.00019826,2]
[359593453,1746172239786,-450.0,0.00019826,2]
[359593454,1746172239795,-4037.96,0.00019826,2]
[359593455,1746172239806,-450.0,0.00019826,2]
[359593456,1746172239816,-450.0,0.00019826,2]
[359593457,1746172239826,-450.0,0.00019826,2]
[359593458,1746172239836,-450.0,0.00019826,2]
[359593459,1746172239846,-450.0,0.00019826,2]
[359593460,1746172239856,-450.0,0.00019826,2]
[359593461,1746172239866,-584.31,0.00019826,2]
[359593462,1746172239877,-450.0,0.00019826,2]
[359593463,1746172239886,-450.0,0.00019826,2]
[359593464,1746172239896,-484.8,0.00019826,2]
[359593465,1746172239906,-1010.96,0.00019826,2]
[359593466,1746172239916,-459.01,0.00019826,2]
[359593467,1746172239926,-450.0,0.00019826,2]
[359593468,1746172239935,-450.0,0.00019826,2]
[359593469,1746172239945,-450.0,0.00019826,2]
[359593470,1746172239954,-180.20392329,0.00019826,2]
[359593471,1746172239964,-621.09,0.00019826,2]
[359593472,1746172239973,-450.0,0.00019826,2]
[359593473,1746172239983,-450.0,0.00019826,2]
[359593474,1746172239993,-579.26,0.00019826,2]
[359593475,1746172240004,-952.96,0.00019826,2]
[359593476,1746172240014,-808.16,0.00019826,2]
[359593477,1746172240023,-966.51,0.00019826,2]
[359593478,1746172240033,-450.0,0.00019826,2]
[359593479,1746172240042,-1057.68,0.00019826,2]
[359593480,1746172240052,-332.84471271,0.00019826,2]
[359593481,1746172240061,-206.49766177,0.00019826,2]
[359593482,1746172240072,-311.97431498,0.00019826,2]
[359593483,1746172240083,-617.55,0.00019827,2]
[359593484,1746172240092,-450.0,0.00019827,2]
[359593485,1746172240104,-819.93,0.00019827,2]
[359593486,1746172240114,-450.0,0.00019827,2]
[359593487,1746172240124,-494.68563965,0.00019827,2]
[359593488,1746172240134,-500.0,0.00019827,2]
[359593489,1746172240146,-450.0,0.00019827,2]
[359593490,1746172240156,-450.0,0.00019827,2]
[359593491,1746172240166,-622.16,0.00019827,2]
[359593492,1746172240176,-693.03,0.00019827,2]
[359593493,1746172240185,-450.0,0.00019827,2]
[359593494,1746172240195,-945.8,0.00019827,2]
[359593495,1746172240205,-450.0,0.00019827,2]
[359593496,1746172240214,-450.0,0.00019827,2]
[359593497,1746172240223,-450.0,0.00019827,2]
[359593498,1746172240233,-536.3,0.00019827,2]
[359593499,1746172240244,-450.0,0.00019827,2]
[359593500,1746172240254,-768.45,0.00019827,2]
[359593501,1746172240264,-450.0,0.00019827,2]
[359593502,1746172240273,-450.0,0.00019827,2]
[359593503,1746172240282,-450.0,0.00019827,2]
[359593504,1746172240291,-450.0,0.00019827,2]
[359593505,1746172240301,-450.0,0.00019827,2]
[359593506,1746172240310,-450.0,0.00019827,2]
[359593507,1746172240319,-450.0,0.00019827,2]
[359593508,1746172240329,-1000.0,0.00019827,2]
[359593509,1746172240338,-450.0,0.00019827,2]
[359593510,1746172240347,-450.0,0.00019827,2]
[359593511,1746172240357,-450.0,0.00019827,2]
[359593512,1746172240366,-450.0,0.00019827,2]
[359593513,1746172240375,-450.0,0.00019827,2]
[359593514,1746172240385,-450.0,0.00019827,2]
[359593515,1746172240394,-450.0,0.00019827,2]
[359593516,1746172240403,-450.0,0.00019827,2]
[359593517,1746172240413,-434.98090047,0.00019827,2]
[359593518,1746172240423,-450.0,0.00019827,2]
[359593519,1746172240432,-450.0,0.00019827,2]
[359593520,1746172240442,-450.0,0.00019827,2]
[359593521,1746172240451,-450.0,0.00019827,2]
[359593522,1746172240461,-570.89,0.00019827,2]
[359593523,1746172240470,-450.0,0.00019827,2]
[359593524,1746172240479,-450.0,0.00019827,2]
[359593525,1746172240489,-450.0,0.00019827,2]
[359593526,1746172240498,-450.0,0.00019827,2]
[359593527,1746172240507,-450.0,0.00019827,2]
[359593528,1746172240517,-450.0,0.00019827,2]
[359593529,1746172240526,-450.0,0.00019827,2]
[359593530,1746172240536,-450.0,0.00019827,2]
[359593531,1746172240546,-450.0,0.00019827,2]
[359593532,1746172240555,-620.7,0.00019827,2]
[359593533,1746172240565,-450.0,0.00019827,2]
[359593534,1746172240575,-450.0,0.00019827,2]
[359593535,1746172240588,-450.0,0.00019827,2]
[359593536,1746172240597,-1059.99,0.00019827,2]
[359593537,1746172240607,-450.0,0.00019827,2]
[359593538,1746172240616,-450.0,0.00019827,2]
[359593539,1746172240626,-914.71,0.00019827,2]
[359593540,1746172240636,-450.0,0.00019827,2]
[359593541,1746172240646,-450.0,0.00019827,2]
[359593542,1746172240656,-566.31,0.00019827,2]
[359593543,1746172240666,-450.0,0.00019827,2]
[359593544,1746172240675,-450.0,0.00019827,2]
[359593545,1746172240685,-450.0,0.00019827,2]
[359593546,1746172240695,-450.0,0.00019827,2]
[359593547,1746172240706,-450.0,0.00019827,2]
[359593548,1746172240715,-453.63,0.00019827,2]
[359593549,1746172240724,-450.0,0.00019827,2]
[359593550,1746172240734,-500.0,0.00019827,2]
[359593551,1746172240743,-450.0,0.00019827,2]
[359593552,1746172240753,-450.0,0.00019827,2]
[359593553,1746172240763,-450.0,0.00019827,2]
[359593554,1746172240773,-420.59852288,0.00019827,2]
[359593555,1746172240782,-529.79,0.00019827,2]
[359593556,1746172240792,-500.0,0.00019827,2]
[359593557,1746172240802,-450.0,0.00019827,2]
[359593558,1746172240811,-563.86,0.00019827,2]
[359593559,1746172240821,-450.0,0.00019827,2]
[359593560,1746172240830,-584.05,0.00019827,2]
[359593561,1746172240840,-1426.41,0.00019827,2]
[359593562,1746172240850,-450.0,0.00019827,2]
[359593564,1746172240859,-450.0,0.00019827,2]
[359593565,1746172240869,-450.0,0.00019827,2]
[359593566,1746172240878,-421.90885159,0.00019827,2]
[359593567,1746172240888,-483.37074986,0.00019827,2]
[359593570,1746172240898,-482.04692344,0.00019827,2]
[359593571,1746172240907,-450.0,0.00019827,2]
[359593574,1746172240917,-473.97622075,0.00019827,2]
[359593575,1746172240927,-450.0,0.00019827,2]
[359593576,1746172240936,-613.46,0.00019827,2]
[359593577,1746172240945,-1908.12,0.00019827,2]
[359593578,1746172240955,-1010.35,0.00019827,2]
[359593579,1746172240964,-472.54374558,0.00019827,2]
[359593580,1746172240973,-450.0,0.00019827,2]
[359593581,1746172240983,-450.0,0.00019827,2]
[359593582,1746172240992,-450.0,0.00019827,2]
[359593583,1746172241001,-474.5058927,0.00019827,2]
[359593584,1746172241010,-450.0,0.00019827,2]
[359593585,1746172241018,-450.0,0.00019827,2]
[359593586,1746172241027,-830.48,0.00019827,2]
[359593587,1746172241036,-537.53601954,0.00019827,2]
[359593588,1746172241046,-461.13,0.00019827,2]
[359593589,1746172241055,-468.64426461,0.00019827,2]
[359593590,1746172241064,-478.66110505,0.00019827,2]
[359593591,1746172241073,-450.0,0.00019827,2]
[359593592,1746172241083,-450.0,0.00019827,2]
[359593593,1746172241093,-803.48,0.00019827,2]
[359593594,1746172241102,-932.16,0.00019827,2]
[359593595,1746172241112,-450.0,0.00019827,2]
[359593596,1746172241121,-479.01773472,0.00019827,2]
[359593597,1746172241131,-527.18318092,0.00019827,2]
[359593598,1746172241140,-541.4492389,0.00019827,2]
[359593599,1746172241149,-523.20208212,0.00019827,2]
[359593600,1746172241159,-450.0,0.00019827,2]
[359593601,1746172241168,-477.03531808,0.00019827,2]
[359593602,1746172241178,-450.0,0.00019827,2]
[359593603,1746172241187,-450.0,0.00019827,2]
[359593604,1746172241197,-213.44770575,0.00019827,2]
[359593605,1746172241206,-510.92426429,0.00019827,2]
[359593606,1746172241215,-865.17,0.00019827,2]
[359593607,1746172241224,-450.0,0.00019827,2]
[359593608,1746172241233,-450.0,0.00019827,2]
[359593609,1746172241243,-607.03,0.00019827,2]
[359593610,1746172241252,-450.0,0.00019827,2]
[359593611,1746172241261,-450.0,0.00019827,2]
[359593612,1746172241271,-450.0,0.00019827,2]
[359593613,1746172241280,-450.0,0.00019827,2]
[359593614,1746172241290,-975.29,0.00019827,2]
[359593615,1746172241300,-936.23,0.00019827,2]
[359593616,1746172241313,-878.85,0.00019827,2]
[359593617,1746172241322,-481.31192135,0.00019827,2]
[359593618,1746172241332,-516.32663185,0.00019827,2]
[359593619,1746172241343,-450.0,0.00019827,2]
[359593620,1746172241354,-780.97,0.00019827,2]
[359593621,1746172241364,-450.0,0.00019827,2]
[359593622,1746172241374,-450.0,0.00019827,2]
[359593623,1746172241386,-450.0,0.00019827,2]
[359593624,1746172241397,-978.16,0.00019827,2]
[359593625,1746172241406,-572.98,0.00019827,2]
[359593626,1746172241416,-450.0,0.00019827,2]
[359593627,1746172241428,-450.0,0.00019827,2]
[359593628,1746172241439,-450.0,0.00019827,2]
[359593629,1746172241450,-475.07523351,0.00019827,2]